bitfinex/quotes_BTCUSD_20241003
["timestamp","ask_amount","ask_price","bid_price","bid_amount"]
[1727973720428,0.5333777,60367.0,60366.0,0.001634]
[1727973720684,0.5313777,60367.0,60366.0,0.001634]
[1727973720937,0.5273777,60367.0,60366.0,0.001634]
[1727973721174,0.5373777,60367.0,60366.0,0.002634]
[1727973721416,0.5413777,60367.0,60366.0,0.002634]
[1727973722528,0.5543777,60367.0,60366.0,0.002634]
[1727973723288,0.292653,60367.0,60366.0,0.002634]
[1727973724670,0.292653,60367.0,60366.0,0.001634]
[1727973724671,0.1,60367.0,60366.0,0.001634]
[1727973724895,0.169653,60367.0,60366.0,0.001634]
[1727973725116,0.331278,60373.0,60366.0,0.001634]
[1727973725347,0.332902,60375.0,60366.0,0.001634]
[1727973725348,0.001636,60375.0,60366.0,0.001634]
[1727973725568,0.165644,60371.0,60366.0,0.001634]
[1727973725839,0.001636,60375.0,60366.0,0.001634]
[1727973726065,0.171653,60367.0,60366.0,0.001634]
[1727973729863,0.55276003,60361.0,60360.0,0.000816]
[1727973730108,0.67512847,60361.0,60360.0,0.000816]
[1727973730378,0.67312847,60361.0,60360.0,0.000816]
[1727973730619,0.64863961,60361.0,60360.0,0.000816]
[1727973731068,0.64863961,60361.0,60358.0,0.001634]
[1727973731069,0.267675,60359.0,60358.0,0.001634]
[1727973731303,0.43086171,60359.0,60358.0,0.001634]
[1727973731518,0.5287264,60359.0,60358.0,0.001634]
[1727973731745,0.265675,60359.0,60358.0,0.001634]
[1727973731985,0.33907821,60359.0,60358.0,0.001634]
[1727973732256,0.165675,60359.0,60358.0,0.001634]
[1727973732738,0.179675,60359.0,60358.0,0.001634]
[1727973732975,0.165673,60360.0,60358.0,0.01248761]
[1727973733190,0.165671,60361.0,60358.0,0.001634]
[1727973733413,0.165673,60360.0,60358.0,0.001634]
[1727973733627,0.17967,60361.0,60358.0,0.001634]
[1727973733843,0.165671,60361.0,60358.0,0.001634]
[1727973734060,0.165664,60363.0,60359.0,0.165674]
[1727973734310,0.004,60360.0,60359.0,0.188674]
[1727973734548,0.004,60360.0,60358.0,0.001634]
[1727973734549,0.169674,60360.0,60358.0,0.001634]
[1727973734847,0.331329,60363.0,60358.0,0.001634]
[1727973735084,0.165675,60359.0,60358.0,0.001634]
[1727973735552,0.3160754,60359.0,60358.0,0.001634]
[1727973736498,0.60116643,60359.0,60358.0,0.001634]
[1727973736940,0.60316643,60359.0,60358.0,0.001634]
[1727973737159,0.60316643,60359.0,60358.0,0.003634]
[1727973737418,0.49764166,60359.0,60358.0,0.003634]
[1727973737675,0.002,60347.0,60346.0,0.24858514]
[1727973737911,0.3981171,60347.0,60346.0,0.24858514]
[1727973738425,0.3981171,60347.0,60324.0,0.240971]
[1727973738426,0.165727,60340.0,60324.0,0.240971]
[1727973738713,0.165727,60340.0,60326.0,0.165764]
[1727973738714,0.265727,60340.0,60326.0,0.165764]
[1727973738889,0.265727,60340.0,60321.0,0.24858514]
[1727973738890,0.265746,60333.0,60321.0,0.24858514]
[1727973739131,0.55083703,60333.0,60328.0,0.24858514]
[1727973739373,0.76707301,60333.0,60321.0,0.24858514]
[1727973739605,0.55286703,60322.0,60321.0,0.24858514]
[1727973739824,0.64316703,60322.0,60321.0,0.24858514]
[1727973740062,0.267779,60321.0,60320.0,4e-05]
[1727973740287,0.265807,60311.0,60310.0,0.24858514]
[1727973740509,0.64399793,60311.0,60310.0,0.24858514]
[1727973740767,0.64399793,60311.0,60303.0,0.24858514]
[1727973740768,0.16582,60306.0,60303.0,0.24858514]
[1727973740985,0.55091103,60306.0,60303.0,0.24858514]
[1727973741450,0.4247179,60311.0,60303.0,0.24858514]
[1727973741451,0.013,60311.0,60303.0,0.24858514]
[1727973741680,0.165816,60308.0,60301.0,0.0002]
[1727973741904,0.165814,60309.0,60306.0,0.00809549]
[1727973742125,0.165818,60307.0,60306.0,0.00809549]
[1727973742906,0.165818,60307.0,60301.0,0.0002]
[1727973742907,0.26582,60306.0,60301.0,0.0002]
[1727973743835,0.27382,60306.0,60301.0,0.0002]
[1727973744096,0.31686927,60306.0,60301.0,0.0002]
[1727973744319,0.48005598,60306.0,60301.0,0.0002]
[1727973744569,0.48505598,60306.0,60301.0,0.0002]
[1727973744817,0.48505598,60306.0,60281.0,0.0002]
[1727973744818,0.165886,60282.0,60281.0,0.0002]
[1727973745072,0.1,60282.0,60281.0,0.0002]
[1727973745309,0.1,60294.0,60281.0,0.0082805]
[1727973745544,0.28509103,60295.0,60282.0,0.331772]
[1727973745545,0.331703,60295.0,60282.0,0.331772]
[1727973745794,0.331726,60291.0,60281.0,0.0002]
[1727973746030,0.165879,60285.0,60283.0,0.00810135]
[1727973746246,0.28509103,60285.0,60281.0,0.0002]
[1727973746476,0.0616817,60290.0,60282.0,0.331772]
[1727973746703,0.165862,60291.0,60283.0,0.165883]
[1727973746929,0.41444214,60293.0,60282.0,0.00810246]
[1727973747152,0.431699,60296.0,60281.0,0.0002]
[1727973747153,0.16585,60296.0,60287.0,0.165872]
[1727973747389,0.003,60285.0,60284.0,0.03110025]
[1727973747618,0.003,60285.0,60282.0,0.023]
[1727973747858,0.003,60285.0,60281.0,0.0002]
[1727973748105,0.28509103,60291.0,60284.0,0.023]
[1727973748315,0.28509103,60291.0,60281.0,0.0002]
[1727973748316,0.24858514,60286.0,60281.0,0.0002]
[1727973748575,0.165879,60285.0,60281.0,0.0002]
[1727973748815,0.33173,60290.0,60281.0,0.0002]
[1727973748816,0.165875,60287.0,60281.0,0.0002]
[1727973749045,0.33173,60290.0,60282.0,0.165886]
[1727973749288,0.28509103,60291.0,60283.0,0.023]
[1727973749515,0.24858514,60290.0,60285.0,0.023]
[1727973749994,0.24858514,60290.0,60285.0,0.165877]
[1727973750257,0.165871,60288.0,60283.0,0.165883]
[1727973750486,0.331718,60292.0,60284.0,0.023]
[1727973750743,0.165862,60291.0,60285.0,0.165876]
[1727973750987,0.003,60290.0,60284.0,0.023]
[1727973751210,0.165869,60289.0,60283.0,0.165883]
[1727973751489,0.165869,60289.0,60284.0,0.18888]
[1727973751490,0.165868,60289.0,60284.0,0.18888]
[1727973751732,0.005,60292.0,60287.0,0.165871]
[1727973751975,0.21258833,60292.0,60287.0,0.165871]
[1727973752210,0.165871,60288.0,60284.0,0.16588]
[1727973752422,0.165871,60288.0,60285.0,0.023]
[1727973752643,0.497599,60290.0,60285.0,0.188878]
[1727973752872,0.265884,60283.0,60282.0,0.000818]
[1727973754711,0.265884,60283.0,60282.0,0.001818]
[1727973754712,0.279884,60283.0,60282.0,0.001818]
[1727973755161,0.265884,60283.0,60282.0,0.000818]
[1727973755350,0.42695725,60283.0,60282.0,0.001818]
[1727973755599,0.278884,60283.0,60282.0,0.001818]
[1727973756810,0.165884,60283.0,60282.0,0.000818]
[1727973757073,0.013,60283.0,60282.0,0.166704]
[1727973757300,0.013,60283.0,60282.0,0.000818]
[1727973757561,0.58029914,60293.0,60282.0,0.000818]
[1727973757562,0.24858514,60293.0,60282.0,0.000818]
[1727973757792,0.24858514,60293.0,60284.0,0.331761]
[1727973758000,0.24858514,60293.0,60289.0,0.023]
[1727973758258,0.24858514,60293.0,60287.0,0.023]
[1727973758473,0.24858514,60293.0,60284.0,0.331762]
[1727973758474,0.41444214,60293.0,60286.0,0.165875]
[1727973758701,0.24858514,60293.0,60288.0,0.023]
[1727973758964,0.331669,60301.0,60288.0,0.023]
[1727973758965,0.331684,60299.0,60289.0,0.331733]
[1727973759225,0.24858514,60311.0,60293.0,0.331709]
[1727973759226,0.24858514,60297.0,60293.0,0.331709]
[1727973759473,0.24858514,60304.0,60295.0,0.331701]
[1727973759716,0.24858514,60304.0,60292.0,0.1011]
[1727973759717,0.24858514,60296.0,60292.0,0.1011]
[1727973759942,0.331659,60303.0,60294.0,0.188853]
[1727973760181,0.165833,60302.0,60294.0,0.188853]
[1727973760427,0.331659,60303.0,60293.0,0.023]
[1727973760680,0.165838,60300.0,60293.0,0.188856]
[1727973760899,0.24858514,60318.0,60296.0,0.023]
[1727973761122,0.24858514,60318.0,60302.0,0.331663]
[1727973761123,0.24858514,60304.0,60302.0,0.331663]
[1727973761349,0.331592,60315.0,60302.0,0.331663]
[1727973761579,0.58016414,60318.0,60306.0,0.16582]
[1727973761860,0.41439314,60311.0,60305.0,0.023]
[1727973762089,0.41439314,60311.0,60305.0,0.188822]
[1727973762090,0.24858514,60311.0,60305.0,0.188822]
[1727973762343,0.165793,60317.0,60310.0,0.165809]
[1727973762575,0.165799,60314.0,60308.0,0.023]
[1727973762795,0.331586,60317.0,60308.0,0.188815]
[1727973763032,0.0773,60336.0,60308.0,0.188815]
[1727973763033,0.0773,60336.0,60309.0,0.331621]
[1727973763274,0.24858514,60318.0,60316.0,0.023]
[1727973763494,0.24858514,60318.0,60316.0,0.188792]
[1727973763732,0.165781,60321.0,60315.0,0.023]
[1727973763969,0.165779,60321.0,60315.0,0.188794]
[1727973764189,0.331553,60323.0,60316.0,0.165793]
[1727973764190,0.165775,60323.0,60316.0,0.165793]
[1727973764442,0.331551,60323.0,60312.0,0.023]
[1727973764681,0.331551,60323.0,60301.0,0.023]
[1727973764682,0.001636,60311.0,60301.0,0.023]
[1727973764937,0.001636,60311.0,60291.0,0.0762]
[1727973764938,0.331616,60311.0,60291.0,0.0762]
[1727973765178,0.28509103,60303.0,60298.0,0.24858514]
[1727973765426,0.165821,60306.0,60300.0,0.165837]
[1727973765695,0.331649,60305.0,60297.0,0.165845]
[1727973765929,0.24858514,60307.0,60291.0,0.0762]
[1727973765930,0.24858514,60307.0,60292.0,0.1]
[1727973766159,0.24858514,60307.0,60294.0,0.25898671]
[1727973766395,0.24858514,60307.0,60303.0,0.165827]
[1727973766636,0.24858514,60307.0,60302.0,0.331663]
[1727973766897,0.24858514,60307.0,60303.0,0.165828]
[1727973767162,0.24858514,60307.0,60298.0,0.331685]
[1727973767398,0.165813,60309.0,60295.0,0.331698]
[1727973767399,0.165813,60309.0,60303.0,0.165828]
[1727973767637,0.24858514,60308.0,60303.0,0.165828]
[1727973767870,0.003,60307.0,60304.0,0.00804203]
[1727973768324,0.165813,60309.0,60304.0,0.00804203]
[1727973768555,0.002,60307.0,60304.0,0.00804203]
[1727973768851,0.165823,60305.0,60304.0,0.00804203]
[1727973769083,0.165821,60306.0,60304.0,0.00804203]
[1727973769327,0.24858514,60306.0,60292.0,0.331717]
[1727973769547,0.165835,60301.0,60295.0,0.16585]
[1727973769782,0.40576162,60305.0,60292.0,0.331718]
[1727973769783,0.24858514,60299.0,60292.0,0.331718]
[1727973770012,0.44057875,60304.0,60282.0,0.000818]
[1727973770013,0.44057875,60304.0,60295.0,0.3317]
[1727973770237,0.165843,60298.0,60283.0,0.0793]
[1727973770459,0.331641,60306.0,60296.0,0.165845]
[1727973770714,0.331641,60306.0,60296.0,0.165848]
[1727973770715,0.165829,60303.0,60296.0,0.165848]
[1727973770937,0.33166,60303.0,60291.0,0.331719]
[1727973771163,0.16584,60299.0,60291.0,0.331719]
[1727973771386,0.37310141,60303.0,60291.0,0.331719]
[1727973771615,0.37310141,60303.0,60286.0,0.331751]
[1727973771616,0.331664,60302.0,60294.0,0.165851]
[1727973771833,0.165838,60300.0,60294.0,0.165851]
[1727973772496,0.10777371,60300.0,60287.0,0.023]
[1727973772730,0.24858514,60304.0,60288.0,0.33174]
[1727973772951,0.24858514,60304.0,60288.0,0.16587]
[1727973772952,0.68916389,60304.0,60288.0,0.16587]
[1727973773258,0.331683,60299.0,60286.0,0.331751]
[1727973773481,0.68916389,60304.0,60284.0,0.427159]
[1727973773482,0.497533,60298.0,60287.0,0.24858514]
[1727973773697,0.26258514,60303.0,60284.0,0.1954]
[1727973773919,0.26258514,60303.0,60300.0,0.165836]
[1727973773920,0.24858514,60303.0,60300.0,0.165836]
[1727973774156,0.24858514,60303.0,60295.0,0.331698]
[1727973774424,0.24858514,60303.0,60297.0,0.165845]
[1727973774640,0.009,60304.0,60285.0,0.023]
[1727973774876,0.331658,60303.0,60291.0,0.023]
[1727973775107,0.009,60304.0,60293.0,0.023]
[1727973775317,0.24858514,60302.0,60301.0,0.165834]
[1727973775554,0.41439814,60309.0,60300.0,0.33167]
[1727973775555,0.30660525,60309.0,60300.0,0.33167]
[1727973775780,0.30660525,60309.0,60293.0,0.023]
[1727973775781,0.24835456,60309.0,60293.0,0.023]
[1727973775997,0.24835456,60309.0,60299.0,0.331676]
[1727973775998,0.165821,60306.0,60299.0,0.331676]
[1727973776214,0.24835456,60309.0,60292.0,0.023]
[1727973776215,0.331637,60307.0,60292.0,0.023]
[1727973776456,0.165827,60304.0,60299.0,0.165838]
[1727973776679,0.165827,60304.0,60291.0,0.331724]
[1727973776680,0.165843,60298.0,60283.0,0.0793]
[1727973776920,0.001636,60299.0,60296.0,0.165848]
[1727973777214,0.001636,60299.0,60292.0,0.023]
[1727973777435,0.001636,60299.0,60291.0,0.331723]
[1727973777436,0.001636,60299.0,60298.0,0.165842]
[1727973777662,0.02763233,60299.0,60298.0,0.165842]
[1727973777883,0.001636,60299.0,60298.0,0.165842]
[1727973778351,0.001636,60299.0,60298.0,0.188842]
[1727973780388,0.001636,60299.0,60298.0,0.165842]
[1727973780642,0.001636,60299.0,60298.0,0.166842]
[1727973780643,0.002636,60299.0,60298.0,0.166842]
[1727973781130,0.001636,60299.0,60298.0,0.165842]
[1727973781352,0.002636,60299.0,60298.0,0.165842]
[1727973782062,0.001636,60299.0,60298.0,0.165842]
[1727973782506,0.001636,60299.0,60298.0,0.17390801]
[1727973782769,0.001636,60299.0,60298.0,0.19690801]
[1727973783017,0.001636,60299.0,60298.0,0.27230801]
[1727973783255,0.001636,60299.0,60298.0,0.17390801]
[1727973783508,0.001636,60299.0,60298.0,0.17490801]
[1727973783509,0.002636,60299.0,60298.0,0.17490801]
[1727973784709,0.002636,60299.0,60298.0,0.00906601]
[1727973785165,0.002636,60299.0,60298.0,0.166842]
[1727973785383,0.002636,60299.0,60298.0,0.174885]
[1727973785601,0.002636,60299.0,60298.0,0.173885]
[1727973785602,0.02763175,60299.0,60298.0,0.173885]
[1727973786300,0.02763175,60299.0,60298.0,0.008043]
[1727973786519,0.02763175,60299.0,60298.0,0.173885]
[1727973786750,0.02763175,60299.0,60298.0,0.165842]
[1727973786997,0.02763175,60299.0,60298.0,0.17388576]
[1727973787275,0.02763175,60299.0,60298.0,0.36007247]
[1727973787507,0.04890578,60339.0,60299.0,0.0787]
[1727973787784,0.24858514,60322.0,60321.0,0.270779]
[1727973788013,0.24858514,60322.0,60321.0,0.293779]
[1727973788269,0.24858514,60332.0,60321.0,0.293779]
[1727973788270,0.24858514,60332.0,60331.0,0.165752]
[1727973788543,0.24858514,60332.0,60331.0,0.45115545]
[1727973788772,0.24858514,60341.0,60337.0,0.331467]
[1727973788994,0.24858514,60341.0,60339.0,0.165729]
[1727973789227,0.24858514,60341.0,60337.0,0.165733]
[1727973789477,0.24858514,60348.0,60335.0,0.331481]
[1727973789716,0.41429114,60348.0,60338.0,0.165732]
[1727973790189,0.165714,60345.0,60339.0,0.00856925]
[1727973790407,0.24858514,60348.0,60339.0,0.00856925]
[1727973790630,0.165712,60346.0,60337.0,0.165734]
[1727973790895,0.331401,60350.0,60340.0,0.00856815]
[1727973791154,0.1,60348.0,60333.0,0.331491]
[1727973791394,0.165712,60346.0,60341.0,0.00856704]
[1727973791615,0.003,60345.0,60339.0,0.165729]
[1727973792096,0.02597854,60344.0,60342.0,0.00850677]
[1727973792316,0.02597854,60344.0,60343.0,0.165719]
[1727973792554,0.02597854,60344.0,60343.0,0.17422466]
[1727973794583,0.02597854,60344.0,60343.0,0.00850566]
[1727973795311,0.02697854,60344.0,60343.0,0.58699651]
[1727973795556,0.001,60344.0,60343.0,0.45490571]
[1727973795773,0.001,60344.0,60343.0,0.50161137]
[1727973796330,0.001,60344.0,60343.0,0.46641137]
[1727973796567,0.001,60344.0,60343.0,0.46841137]
[1727973796771,0.001,60344.0,60343.0,0.50161137]
[1727973797184,0.24858514,60358.0,60357.0,0.16568]
[1727973797823,0.001636,60359.0,60358.0,0.165678]
[1727973798203,0.001636,60359.0,60358.0,0.17400634]
[1727973799040,0.001636,60359.0,60358.0,0.00832834]
[1727973799260,0.165682,60357.0,60352.0,0.165692]
[1727973799507,0.001636,60359.0,60358.0,0.00833766]
[1727973799748,0.001636,60359.0,60357.0,0.165679]
[1727973799986,0.001636,60359.0,60342.0,0.1]
[1727973799987,0.0186936,60359.0,60358.0,0.00833766]
[1727973800231,0.0186936,60359.0,60347.0,0.24858514]
[1727973800448,0.001636,60359.0,60358.0,0.001]
[1727973800875,0.001636,60359.0,60347.0,0.24858514]
[1727973801090,0.001636,60359.0,60358.0,0.00835408]
[1727973801302,0.001636,60359.0,60347.0,0.24858514]
[1727973801303,0.001636,60344.0,60340.0,0.24858514]
[1727973801736,0.001636,60344.0,60342.0,0.00837171]
[1727973802164,0.001636,60344.0,60343.0,0.17410291]
[1727973803371,0.001636,60344.0,60343.0,0.00838391]
[1727973803603,0.001636,60344.0,60337.0,0.331468]
[1727973803604,0.001636,60344.0,60342.0,0.16572]
[1727973803816,0.001636,60344.0,60343.0,0.17409202]
[1727973804049,0.001636,60344.0,60343.0,0.00837302]
[1727973804050,0.167352,60344.0,60343.0,0.00837302]
[1727973804257,0.331447,60342.0,60336.0,0.165738]
[1727973804484,0.02696952,60344.0,60335.0,0.331482]
[1727973804701,0.35840352,60344.0,60337.0,0.331469]
[1727973804911,0.165724,60341.0,60338.0,0.165731]
[1727973805123,0.165722,60342.0,60339.0,0.165728]
[1727973805367,0.165728,60340.0,60335.0,0.331479]
[1727973805589,0.331443,60343.0,60325.0,0.1]
[1727973805829,0.331486,60335.0,60332.0,0.24858514]
[1727973806050,0.02696952,60344.0,60329.0,0.165757]
[1727973806051,0.16575,60332.0,60329.0,0.165757]
[1727973806292,0.16575,60332.0,60325.0,0.24858514]
[1727973806521,0.165758,60329.0,60325.0,0.165768]
[1727973806763,0.331507,60331.0,60325.0,0.165766]
[1727973807010,0.02598087,60332.0,60311.0,0.08]
[1727973807011,0.24858514,60329.0,60311.0,0.08]
[1727973807261,0.331531,60327.0,60319.0,0.24858514]
[1727973807483,0.331531,60327.0,60317.0,0.33158]
[1727973807484,0.331537,60326.0,60317.0,0.33158]
[1727973807742,0.19175048,60326.0,60325.0,0.001]
[1727973807984,0.02598448,60326.0,60325.0,0.001]
[1727973808230,0.165751,60332.0,60328.0,0.165759]
[1727973808474,0.02598459,60331.0,60329.0,0.165755]
[1727973809163,0.02598459,60331.0,60327.0,0.165762]
[1727973809385,0.02598459,60331.0,60323.0,0.331547]
[1727973809607,0.165758,60329.0,60325.0,0.165768]
[1727973809834,0.331521,60328.0,60319.0,0.24858514]
[1727973810058,0.008,60326.0,60325.0,0.001]
[1727973810288,0.173766,60326.0,60325.0,0.001]
[1727973810738,0.33156,60321.0,60310.0,0.165809]
[1727973810998,0.11942986,60326.0,60319.0,0.001]
[1727973810999,0.165782,60320.0,60319.0,0.001]
[1727973811474,0.165801,60313.0,60309.0,0.24858514]
[1727973811715,0.02598804,60320.0,60309.0,0.24858514]
[1727973811941,0.165797,60315.0,60312.0,0.165803]
[1727973812170,0.02598804,60320.0,60297.0,0.0494331]
[1727973812419,0.165823,60305.0,60303.0,0.24858514]
[1727973812657,0.31139149,60320.0,60303.0,0.24858514]
[1727973812658,0.331589,60316.0,60303.0,0.58024214]
[1727973812899,0.331589,60316.0,60306.0,0.165819]
[1727973812900,0.165811,60310.0,60306.0,0.165819]
[1727973813139,0.02599151,60313.0,60306.0,0.331641]
[1727973813353,0.02699151,60313.0,60312.0,0.165804]
[1727973813588,0.02699151,60313.0,60310.0,0.165807]
[1727973813849,0.165808,60311.0,60305.0,0.331644]
[1727973814090,0.02599151,60313.0,60301.0,0.331668]
[1727973814091,0.165817,60308.0,60304.0,0.165825]
[1727973814311,0.165817,60308.0,60306.0,0.01185497]
[1727973814552,0.165813,60309.0,60306.0,0.001]
[1727973814775,0.02599151,60313.0,60307.0,0.01085331]
[1727973814999,0.02599151,60313.0,60303.0,0.24858514]
[1727973815221,0.02599151,60313.0,60312.0,0.165804]
[1727973815493,0.02599151,60313.0,60312.0,0.17321985]
[1727973815738,0.02599151,60313.0,60312.0,0.00741585]
[1727973816205,0.02599151,60313.0,60312.0,0.17321894]
[1727973816903,0.02599151,60313.0,60312.0,0.00741494]
[1727973817151,0.02599151,60313.0,60312.0,0.165804]
[1727973817379,0.02599151,60313.0,60312.0,0.17320078]
[1727973817589,0.02599151,60313.0,60312.0,0.17520078]
[1727973817821,0.02599151,60313.0,60312.0,0.00939678]
[1727973817822,0.04517006,60313.0,60312.0,0.00939678]
[1727973818078,0.21097106,60313.0,60312.0,0.002]
[1727973818321,0.21097106,60313.0,60303.0,0.24858514]
[1727973818322,0.165817,60308.0,60303.0,0.24858514]
[1727973818560,0.331631,60308.0,60303.0,0.24858514]
[1727973818793,0.33162,60310.0,60299.0,0.332497]
[1727973819010,0.497446,60308.0,60301.0,0.165832]
[1727973819231,0.165819,60307.0,60299.0,0.166655]
[1727973819456,0.33162,60310.0,60300.0,0.00331636]
[1727973819712,0.165822,60306.0,60300.0,0.00331636]
[1727973819926,0.165814,60309.0,60302.0,0.165829]
[1727973820166,0.24858514,60311.0,60303.0,0.00331618]
[1727973820388,0.001,60307.0,60302.0,0.165831]
[1727973820822,0.165818,60307.0,60301.0,0.165832]
[1727973821031,0.165813,60309.0,60299.0,0.355497]
[1727973821248,0.168813,60309.0,60303.0,0.165828]
[1727973821924,0.165815,60308.0,60302.0,0.16583]
[1727973822169,0.02899199,60309.0,60299.0,0.000818]
[1727973822373,0.331632,60308.0,60299.0,0.000818]
[1727973822591,0.02899199,60309.0,60299.0,0.000818]
[1727973822592,0.02599199,60309.0,60299.0,0.000818]
[1727973822816,0.165835,60301.0,60299.0,0.000818]
[1727973823023,0.165837,60300.0,60299.0,0.000818]
[1727973823713,0.41442214,60300.0,60299.0,0.000818]
[1727973823933,0.63252658,60300.0,60299.0,0.000818]
[1727973824157,0.16587,60288.0,60287.0,0.24858514]
[1727973824378,0.45127345,60288.0,60287.0,0.24858514]
[1727973824602,0.45127345,60288.0,60287.0,0.007451]
[1727973824830,0.165873,60287.0,60286.0,0.04934633]
[1727973825064,0.165878,60285.0,60284.0,0.07401949]
[1727973825716,0.331752,60286.0,60282.0,0.000818]
[1727973825929,0.165884,60283.0,60282.0,0.000818]
[1727973826594,0.65088745,60283.0,60282.0,0.000818]
[1727973826844,0.65288745,60283.0,60282.0,0.000818]
[1727973827093,0.81407416,60283.0,60282.0,0.000818]
[1727973827306,0.81607416,60283.0,60282.0,0.000818]
[1727973827536,0.81907416,60283.0,60282.0,0.001818]
[1727973828437,0.82107416,60283.0,60282.0,0.001818]
[1727973828656,0.165914,60272.0,60271.0,0.000817]
[1727973829761,0.31058935,60272.0,60271.0,0.000817]
[1727973830192,0.166914,60272.0,60271.0,0.000817]
[1727973830896,0.88260259,60272.0,60271.0,0.000817]
[1727973831109,0.165942,60262.0,60261.0,0.0002]
[1727973831330,0.55134545,60262.0,60261.0,0.0002]
[1727973831548,0.7060413,60262.0,60261.0,0.0002]
[1727973832617,0.55134545,60262.0,60261.0,0.0002]
[1727973833293,0.29195763,60262.0,60261.0,0.0002]
[1727973833633,0.02601563,60262.0,60261.0,0.0002]
[1727973833859,0.04001563,60262.0,60261.0,0.0002]
[1727973834079,0.20595763,60262.0,60261.0,0.0002]
[1727973834553,0.19195763,60262.0,60261.0,0.0002]
[1727973834883,0.265972,60251.0,60250.0,4e-05]
[1727973835092,0.165972,60251.0,60250.0,4e-05]
[1727973835509,0.45137545,60251.0,60250.0,4e-05]
[1727973836626,0.165972,60251.0,60250.0,4e-05]
[1727973837306,0.28540345,60256.0,60250.0,4e-05]
[1727973837307,0.331924,60255.0,60250.0,4e-05]
[1727973837538,0.331924,60255.0,60250.0,0.000858]
[1727973837539,0.165972,60251.0,60250.0,0.000858]
[1727973837798,0.165972,60251.0,60238.0,0.000818]
[1727973837799,0.28778846,60251.0,60238.0,0.000818]
[1727973838032,0.165997,60242.0,60238.0,0.000818]
[1727973838484,0.331961,60248.0,60238.0,0.000818]
[1727973838722,0.165994,60244.0,60238.0,0.000818]
[1727973838933,0.38540345,60250.0,60238.0,0.000818]
[1727973838934,0.165997,60242.0,60238.0,0.000818]
[1727973839644,0.1920209,60242.0,60238.0,0.000818]
[1727973840340,0.1990209,60242.0,60238.0,0.000818]
[1727973840817,0.1920209,60242.0,60238.0,0.000818]
[1727973841031,0.2060209,60242.0,60238.0,0.000818]
[1727973841261,0.32155914,60242.0,60238.0,0.000818]
[1727973841490,0.2060209,60242.0,60238.0,0.000818]
[1727973842623,0.1920209,60242.0,60238.0,0.000818]
[1727973842843,0.1950209,60242.0,60238.0,0.000818]
[1727973843989,0.4733209,60242.0,60238.0,0.000818]
[1727973844244,0.63650761,60242.0,60238.0,0.000818]
[1727973844493,0.63350761,60242.0,60238.0,0.000818]
[1727973845011,0.2920209,60242.0,60238.0,0.000818]
[1727973845699,0.2950209,60242.0,60238.0,0.000818]
[1727973845950,0.168997,60242.0,60238.0,0.000818]
[1727973846163,0.165997,60242.0,60238.0,0.000818]
[1727973846380,0.331983,60245.0,60238.0,0.166825]
[1727973846599,0.01,60242.0,60239.0,0.332008]
[1727973846839,0.01,60242.0,60241.0,0.166199]
[1727973847107,0.24858514,60249.0,60241.0,0.0232]
[1727973847329,0.002,60242.0,60241.0,0.0002]
[1727973847610,0.002,60242.0,60241.0,0.166199]
[1727973848716,0.002,60242.0,60241.0,0.0002]
[1727973848960,0.165981,60248.0,60242.0,0.165996]
[1727973849172,0.001,60242.0,60241.0,0.166199]
[1727973849408,0.001,60242.0,60241.0,0.001019]
[1727973849654,0.16599,60245.0,60241.0,0.001019]
[1727973849655,0.165993,60244.0,60241.0,0.001019]
[1727973849906,0.24858514,60249.0,60241.0,0.001019]
[1727973850165,0.901916,60257.0,60245.0,0.331975]
[1727973850166,0.331922,60256.0,60245.0,0.331975]
[1727973850396,0.24858514,60250.0,60246.0,0.023]
[1727973850633,0.33198,60245.0,60241.0,0.001019]
[1727973850874,0.28540345,60254.0,60241.0,0.001019]
[1727973851097,0.331939,60253.0,60241.0,0.024019]
[1727973851351,0.331924,60255.0,60241.0,0.001019]
[1727973851567,0.331924,60255.0,60241.0,0.024019]
[1727973851568,0.331923,60255.0,60241.0,0.024019]
[1727973851791,0.165967,60253.0,60249.0,0.165976]
[1727973852032,0.801914,60257.0,60247.0,0.023]
[1727973852033,0.47,60257.0,60247.0,0.023]
[1727973852291,0.16596,60256.0,60251.0,0.165971]
[1727973852546,0.331919,60256.0,60250.0,0.165974]
[1727973852783,0.165964,60254.0,60250.0,0.165974]
[1727973853248,0.165981,60248.0,60244.0,0.165989]
[1727973853475,0.33194,60252.0,60244.0,0.24858514]
[1727973853730,0.02601688,60255.0,60241.0,0.001019]
[1727973854030,0.165972,60251.0,60250.0,0.002]
[1727973854241,0.243223,60251.0,60250.0,0.002]
[1727973855388,0.331973,60246.0,60241.0,0.24960414]
[1727973855609,0.165992,60244.0,60241.0,0.41560114]
[1727973855840,0.165992,60244.0,60241.0,0.167016]
[1727973856053,0.165992,60244.0,60241.0,0.167018]
[1727973856264,0.331973,60246.0,60241.0,0.001019]
[1727973856479,0.165997,60242.0,60241.0,0.001019]
[1727973856693,0.24858514,60249.0,60241.0,0.001019]
[1727973856694,0.165991,60244.0,60241.0,0.001019]
[1727973856914,0.331966,60248.0,60241.0,0.001019]
[1727973857162,0.24858514,60249.0,60245.0,0.165988]
[1727973857446,0.165979,60249.0,60241.0,0.003019]
[1727973857691,0.331954,60250.0,60241.0,0.003019]
[1727973857918,0.165979,60249.0,60246.0,0.165985]
[1727973858184,0.24858514,60258.0,60246.0,0.023]
[1727973858426,0.24858514,60258.0,60251.0,0.33194]
[1727973858677,0.58045314,60265.0,60246.0,0.0984]
[1727973858908,0.09652366,60264.0,60247.0,0.16318671]
[1727973859154,0.09652366,60264.0,60263.0,0.165939]
[1727973859399,0.09652366,60264.0,60258.0,0.331904]
[1727973859400,0.24858514,60265.0,60264.0,0.165936]
[1727973859632,0.58041114,60273.0,60267.0,0.165926]
[1727973859848,0.24858514,60280.0,60249.0,0.24858514]